bitfinex/quotes_BTCUSD_20250513
["timestamp","ask_amount","ask_price","bid_price","bid_amount"]
[1747134351492,0.27068294,103570.0,103560.0,0.7654307]
[1747134352124,0.27068294,103570.0,103560.0,0.3654307]
[1747134352670,0.27068294,103570.0,103560.0,0.6039084]
[1747134353230,0.27068294,103570.0,103560.0,0.2039084]
[1747134353701,0.27068294,103570.0,103560.0,0.1829507]
[1747134354407,0.27746198,103570.0,103560.0,0.1829507]
[1747134357090,0.27746198,103570.0,103560.0,0.5829507]
[1747134359290,0.27746198,103570.0,103560.0,0.4214284]
[1747134360121,0.27746198,103570.0,103560.0,0.0214284]
[1747134360668,0.2339808,103560.0,103550.0,0.6846423]
[1747134360837,0.28184508,103560.0,103550.0,0.6846423]
[1747134361299,0.28184508,103560.0,103550.0,0.9015223]
[1747134361473,0.28184508,103560.0,103550.0,1.0846423]
[1747134362071,0.28184508,103560.0,103550.0,0.34]
[1747134362279,0.22213552,103540.0,103530.0,1.43545479]
[1747134362453,0.02897327,103540.0,103530.0,2.08938209]
[1747134362691,0.02897327,103540.0,103530.0,2.48938209]
[1747134362905,0.23179343,103540.0,103530.0,2.48938209]
[1747134363036,0.24194384,103540.0,103530.0,1.65683354]
[1747134363236,0.24194384,103540.0,103530.0,2.02063287]
[1747134363438,0.24194384,103540.0,103530.0,2.02463287]
[1747134363653,0.24194384,103540.0,103530.0,2.36511854]
[1747134363860,0.24194384,103540.0,103530.0,2.36911854]
[1747134364257,0.24194384,103540.0,103530.0,2.39274351]
[1747134364538,0.24194384,103540.0,103530.0,1.03288936]
[1747134364539,0.21247807,103540.0,103530.0,1.03288936]
[1747134364739,0.21247807,103540.0,103530.0,0.21527064]
[1747134364740,0.34088747,103540.0,103530.0,0.21527064]
[1747134364848,0.34088747,103540.0,103530.0,0.03211064]
[1747134365263,0.34767188,103540.0,103530.0,0.03211064]
[1747134365460,0.42569208,103540.0,103530.0,0.03211064]
[1747134365923,0.42569208,103540.0,103530.0,0.02811064]
[1747134366135,0.42669208,103540.0,103530.0,0.02811064]
[1747134366344,0.42669208,103540.0,103530.0,0.02411064]
[1747134366548,0.42769208,103540.0,103530.0,0.02411064]
[1747134367613,0.25236248,103540.0,103530.0,0.18563294]
[1747134367826,0.24270457,103540.0,103530.0,0.18563294]
[1747134368413,0.23592016,103540.0,103530.0,0.18563294]
[1747134369429,0.23592016,103540.0,103530.0,0.02411064]
[1747134375440,0.21982016,103540.0,103530.0,0.27043056]
[1747134375825,0.26179665,103540.0,103530.0,0.27043056]
[1747134376761,0.27829665,103540.0,103530.0,0.02411064]
[1747134379765,0.21982016,103540.0,103530.0,0.47327031]
[1747134380158,0.20482016,103540.0,103530.0,0.47327031]
[1747134380591,0.20482016,103540.0,103530.0,0.50224629]
[1747134380592,0.01165791,103540.0,103530.0,0.50224629]
[1747134380797,0.23379343,103540.0,103530.0,0.52318791]
[1747134381164,0.23379343,103540.0,103530.0,0.54250494]
[1747134381362,0.04063127,103540.0,103530.0,0.54250494]
[1747134381553,0.23379333,103540.0,103530.0,0.54250494]
[1747134381986,0.24345143,103540.0,103530.0,0.94250494]
[1747134383399,0.29020261,103540.0,103530.0,0.94250494]
[1747134383602,0.24345143,103540.0,103530.0,0.94250494]
[1747134383927,0.04063127,103540.0,103530.0,0.94250494]
[1747134384126,0.03097253,103540.0,103530.0,1.18882421]
[1747134384294,0.04063044,103540.0,103530.0,1.18882421]
[1747134384479,0.05028844,103540.0,103530.0,0.94250429]
[1747134384679,0.0213148,103540.0,103530.0,1.18882421]
[1747134384893,0.002,103540.0,103530.0,1.52882421]
[1747134385290,0.01165745,103540.0,103530.0,1.52882421]
[1747134385494,0.002,103540.0,103530.0,1.52882421]
[1747134385695,0.01165735,103540.0,103530.0,1.52882421]
[1747134385898,0.00965735,103540.0,103530.0,1.52882421]
[1747134386080,0.0193148,103540.0,103530.0,1.53082421]
[1747134386532,0.01931368,103550.0,103540.0,0.22213552]
[1747134386685,0.01931368,103550.0,103540.0,0.50881289]
[1747134386885,0.01931368,103550.0,103540.0,0.52859363]
[1747134387121,0.01931368,103550.0,103540.0,0.92859363]
[1747134387558,0.02897001,103550.0,103540.0,0.92859363]
[1747134387762,0.03862699,103550.0,103540.0,0.92859363]
[1747134388123,0.01065642,103550.0,103540.0,1.63711363]
[1747134388333,0.03096972,103550.0,103540.0,1.63711363]
[1747134388940,0.0386267,103550.0,103540.0,1.63711363]
[1747134389138,0.0386267,103550.0,103540.0,1.63811363]
[1747134389343,0.02896972,103550.0,103540.0,1.71593845]
[1747134389542,0.03862661,103550.0,103540.0,1.71493845]
[1747134389768,0.04828424,103550.0,103540.0,1.68423845]
[1747134391072,0.04828424,103550.0,103540.0,1.68523845]
[1747134393707,0.24142764,103550.0,103540.0,1.68523845]
[1747134393985,0.29263675,103550.0,103540.0,1.10743311]
[1747134394185,0.28882288,103550.0,103540.0,0.52335311]
[1747134394394,0.28882288,103550.0,103540.0,0.72617327]
[1747134395937,0.28882288,103550.0,103540.0,0.73583118]
[1747134396080,0.27916581,103550.0,103540.0,0.72617327]
[1747134396279,0.23420057,103550.0,103540.0,0.89740355]
[1747134396511,0.21870057,103550.0,103540.0,0.90706118]
[1747134396725,0.20280057,103550.0,103540.0,0.88774564]
[1747134396916,0.20280057,103550.0,103540.0,0.89740364]
[1747134397148,0.20280057,103550.0,103540.0,0.90706155]
[1747134397648,0.21940057,103550.0,103540.0,0.89740364]
[1747134397850,0.2097434,103550.0,103540.0,0.90706155]
[1747134398051,0.2097434,103550.0,103540.0,1.31671937]
[1747134400389,0.20280038,103550.0,103540.0,1.3263771]
[1747134400588,0.20280038,103550.0,103540.0,0.92637663]
[1747134400797,0.21910038,103550.0,103540.0,0.916719]
[1747134400995,0.21910038,103550.0,103540.0,1.316719]
[1747134401406,0.20280038,103550.0,103540.0,1.32637663]
[1747134403014,0.0096567,103550.0,103540.0,1.32637663]
[1747134403219,0.02897001,103550.0,103540.0,0.95727608]
[1747134403373,0.03862699,103550.0,103540.0,0.95727608]
[1747134403567,0.03862699,103550.0,103540.0,1.35727608]
[1747134403768,0.24142756,103550.0,103540.0,1.32637608]
[1747134404369,0.24142756,103550.0,103540.0,0.98391626]
[1747134404370,0.27037402,103550.0,103540.0,0.98391626]
[1747134404572,0.27037402,103550.0,103540.0,1.307061]
[1747134404774,0.27037402,103550.0,103540.0,0.96407972]
[1747134405192,0.27037402,103550.0,103540.0,0.97373735]
[1747134405394,0.22211444,103550.0,103540.0,0.77353389]
[1747134405635,0.22211444,103550.0,103540.0,0.95442199]
[1747134407031,0.21245755,103550.0,103540.0,0.7419442]
[1747134407236,0.21245755,103550.0,103540.0,0.60347946]
[1747134407237,0.24545755,103550.0,103540.0,0.60347946]
[1747134407431,0.24545755,103550.0,103540.0,0.84972758]
[1747134407432,0.28999347,103550.0,103540.0,0.84972758]
[1747134408102,0.28999347,103550.0,103540.0,1.04288964]
[1747134408252,0.28999347,103550.0,103540.0,0.84972758]
[1747134408454,0.28999347,103550.0,103540.0,1.04288964]
[1747134409007,0.28033649,103550.0,103540.0,1.39254774]
[1747134409216,0.27067932,103550.0,103540.0,1.19938568]
[1747134409627,0.27067932,103550.0,103540.0,1.39254774]
[1747134411519,0.27067932,103550.0,103540.0,1.40220574]
[1747134411740,0.27067932,103550.0,103540.0,1.41186365]
[1747134411916,0.27067932,103550.0,103540.0,1.39254774]
[1747134412116,0.27067932,103550.0,103540.0,1.19942568]
[1747134412348,0.27067932,103550.0,103540.0,1.39258774]
[1747134413204,0.27067932,103550.0,103540.0,1.57662774]
[1747134413618,0.27067932,103550.0,103540.0,1.58628565]
[1747134415046,0.27067932,103550.0,103540.0,1.57662774]
[1747134415443,0.27746741,103550.0,103540.0,1.57662774]
[1747134415857,0.27746741,103550.0,103540.0,1.37348758]
[1747134416057,0.27746741,103550.0,103540.0,1.56664964]
[1747134416313,0.27746741,103550.0,103540.0,1.12723946]
[1747134416459,0.27746741,103550.0,103540.0,1.37348758]
[1747134417281,0.27746741,103550.0,103540.0,0.97348758]
[1747134421255,0.27746741,103550.0,103540.0,1.37348758]
[1747134422877,0.27746741,103550.0,103540.0,1.18944758]
[1747134425741,0.27746741,103550.0,103540.0,0.01879946]
[1747134425742,0.37477681,103550.0,103540.0,0.01879946]
[1747134425958,0.38940421,103550.0,103540.0,0.01879946]
[1747134426162,0.38940421,103550.0,103540.0,0.01298386]
[1747134426366,0.41657092,103550.0,103540.0,0.01298386]
[1747134426571,0.38940421,103550.0,103540.0,0.01298386]
[1747134441223,0.38940421,103550.0,103540.0,0.17465076]
[1747134441424,0.29724089,103550.0,103540.0,0.17465076]
[1747134441633,0.31304089,103550.0,103540.0,0.17465076]
[1747134441843,0.32864089,103550.0,103540.0,0.17465076]
[1747134442009,0.32864089,103550.0,103540.0,0.01298386]
[1747134442219,0.38081745,103550.0,103540.0,0.01298386]
[1747134443874,0.54248435,103550.0,103540.0,0.01298386]
[1747134444729,0.90920435,103550.0,103540.0,0.01298386]
[1747134445695,0.90920435,103550.0,103540.0,0.01198386]
[1747134445898,0.97920435,103550.0,103540.0,0.01198386]
[1747134446097,0.98020435,103550.0,103540.0,0.01098386]
[1747134446297,0.98120435,103550.0,103540.0,0.01098386]
[1747134447701,0.9957452,103550.0,103540.0,0.01098386]
[1747134448102,1.3357452,103550.0,103540.0,0.01098386]
[1747134448384,1.52450304,103550.0,103540.0,0.01098386]
[1747134448564,1.36283614,103550.0,103540.0,0.01098386]
[1747134448730,1.36183614,103550.0,103540.0,0.01098386]
[1747134449112,1.36783614,103550.0,103540.0,0.01098386]
[1747134449313,1.36683614,103550.0,103540.0,0.01098386]
[1747134449426,1.37283614,103550.0,103540.0,0.01098386]
[1747134450269,1.38283614,103550.0,103540.0,0.01098386]
[1747134452412,1.37283614,103550.0,103540.0,0.01098386]
[1747134452626,1.02102115,103550.0,103540.0,0.01098386]
[1747134452971,1.21135586,103550.0,103540.0,0.01098386]
[1747134454039,1.37302276,103550.0,103540.0,0.01098386]
[1747134476233,1.38302276,103550.0,103540.0,0.01098386]
[1747134477946,1.48472276,103550.0,103540.0,0.01098386]
[1747134478171,1.38302276,103550.0,103540.0,0.01098386]
[1747134479926,1.38090276,103550.0,103540.0,0.01098386]
[1747134481304,1.00610276,103550.0,103540.0,0.01098386]
[1747134481518,1.19355586,103550.0,103540.0,0.01098386]
[1747134482383,1.17775586,103550.0,103540.0,0.01098386]
[1747134482592,1.33942276,103550.0,103540.0,0.01098386]
[1747134484150,1.37162276,103550.0,103540.0,0.01098386]
[1747134485841,0.81303586,103550.0,103540.0,0.01098386]
[1747134486046,1.33978276,103550.0,103540.0,0.01098386]
[1747134486278,1.17811586,103550.0,103540.0,0.01098386]
[1747134486430,1.17811586,103550.0,103540.0,0.04168386]
[1747134486431,1.17807586,103550.0,103540.0,0.04168386]
[1747134486623,1.17807586,103550.0,103540.0,0.01098386]
[1747134487802,0.99555586,103550.0,103540.0,0.01098386]
[1747134487977,1.17847586,103550.0,103540.0,0.02708386]
[1747134488177,1.17847586,103550.0,103540.0,0.01098386]
[1747134488706,1.35514276,103550.0,103540.0,0.01098386]
[1747134490470,1.34014276,103550.0,103540.0,0.01098386]
[1747134493553,1.37154276,103550.0,103540.0,0.01098386]
[1747134502502,1.20987586,103550.0,103540.0,0.01098386]
[1747134502707,1.37154276,103550.0,103540.0,0.01098386]
[1747134507632,1.35514276,103550.0,103540.0,0.01098386]
[1747134509351,1.37144276,103550.0,103540.0,0.01098386]
[1747134510142,0.2125389,103510.0,103500.0,0.96064115]
[1747134510475,0.21253918,103510.0,103500.0,1.29145819]
[1747134510687,0.21253918,103510.0,103500.0,1.29447773]
[1747134510998,0.21253918,103510.0,103500.0,1.30711135]
[1747134511365,0.21253918,103510.0,103500.0,1.31011135]
[1747134512707,0.21253918,103510.0,103500.0,1.31111135]
[1747134513313,0.21253918,103510.0,103500.0,1.34201135]
[1747134515903,0.21253918,103510.0,103500.0,1.33234989]
[1747134516317,0.20287884,103510.0,103500.0,1.33234989]
[1747134516733,0.20287884,103510.0,103500.0,1.32268834]
[1747134520485,0.20287884,103510.0,103500.0,1.33234989]
[1747134521686,0.20287884,103510.0,103500.0,1.17068299]
[1747134522237,0.20287884,103510.0,103500.0,1.33234989]
[1747134524448,0.20287884,103510.0,103500.0,1.17068299]
[1747134525075,0.20287884,103510.0,103500.0,0.77068299]
[1747134525839,0.20287884,103510.0,103500.0,0.76102144]
[1747134526753,0.20287884,103510.0,103500.0,1.16088893]
[1747134529225,0.20287884,103510.0,103500.0,1.17055048]
[1747134532817,0.20967173,103510.0,103500.0,1.17055048]
[1747134533228,0.20967173,103510.0,103500.0,1.12032729]
[1747134533437,0.20967173,103510.0,103500.0,1.12998893]
[1747134533639,0.20967173,103510.0,103500.0,1.14498893]
[1747134535027,0.20967173,103510.0,103500.0,1.13532729]
[1747134535196,0.20967173,103510.0,103500.0,1.14498893]
[1747134535785,0.20967173,103510.0,103500.0,0.74498893]
[1747134539624,0.20967173,103510.0,103500.0,0.75465048]
[1747134541147,0.21933225,103510.0,103500.0,0.94187874]
[1747134541370,0.21933225,103510.0,103500.0,0.95154001]
[1747134541523,0.21933225,103510.0,103500.0,1.34187874]
[1747134542136,0.21933225,103510.0,103500.0,1.33221738]
[1747134542342,0.21933225,103510.0,103500.0,1.31631738]
[1747134542563,0.2427658,103510.0,103500.0,1.12032729]
[1747134542809,0.2581658,103510.0,103500.0,1.11066555]
[1747134543002,0.2581658,103510.0,103500.0,1.12032738]
[1747134543202,0.2581658,103510.0,103500.0,1.12998912]
[1747134543403,0.2581658,103510.0,103500.0,0.96832222]
[1747134543643,0.2581658,103510.0,103500.0,1.12998912]
[1747134543843,0.2427658,103510.0,103500.0,1.13965076]
[1747134544245,0.2427658,103510.0,103500.0,0.73965076]
[1747134544832,0.2585658,103510.0,103500.0,1.099309]
[1747134545396,0.23241093,103510.0,103500.0,0.517429]
[1747134546269,0.23241093,103510.0,103500.0,0.71066571]
[1747134546500,0.21581093,103510.0,103500.0,0.71066571]
[1747134546739,0.21581093,103510.0,103500.0,0.517429]
[1747134547187,0.21581093,103510.0,103500.0,0.71066571]
[1747134547396,0.21581093,103510.0,103500.0,0.72032754]
[1747134547600,0.21581093,103510.0,103500.0,0.88199444]
[1747134548147,0.20001093,103510.0,103500.0,0.89165599]
[1747134548350,0.20967117,103510.0,103500.0,0.93241745]
[1747134548555,0.02611365,103510.0,103500.0,0.94207863]
[1747134548768,0.03577436,103510.0,103500.0,0.94207863]
[1747134549111,0.02898147,103510.0,103500.0,0.94207863]
[1747134549259,0.01932076,103510.0,103500.0,0.94207863]
[1747134549876,0.02898147,103510.0,103500.0,1.34207863]
[1747134550495,0.01932076,103510.0,103500.0,1.34207863]
[1747134551274,0.02898147,103510.0,103500.0,1.34207863]
[1747134552280,0.01932076,103510.0,103500.0,1.34207863]
[1747134552483,0.02898119,103510.0,103500.0,1.34207863]
[1747134552851,0.0386419,103510.0,103500.0,1.34207863]
[1747134554488,0.02898119,103510.0,103500.0,1.34207863]
[1747134554695,0.0386419,103510.0,103500.0,1.34207863]
[1747134554849,0.0386419,103510.0,103500.0,1.52395863]
[1747134556833,0.01932067,103510.0,103500.0,1.52395863]
[1747134557005,0.02898129,103510.0,103500.0,1.52395863]
[1747134557560,0.01932067,103510.0,103500.0,1.52395863]
[1747134557790,0.02898129,103510.0,103500.0,1.52395863]
[1747134558197,0.01932067,103510.0,103500.0,1.52395863]
[1747134558403,0.02898129,103510.0,103500.0,1.52395863]
[1747134558604,0.01932067,103510.0,103500.0,1.52395863]
[1747134559467,0.02898138,103510.0,103500.0,1.52395863]
[1747134559874,0.01932067,103510.0,103500.0,1.52395863]
[1747134561134,0.01932067,103510.0,103500.0,1.62126803]
[1747134561566,0.02898129,103510.0,103500.0,1.62126803]
[1747134562873,0.02898119,103510.0,103500.0,1.62126803]
[1747134563319,0.00966006,103510.0,103500.0,1.61160573]
[1747134563596,0.21932759,103520.0,103510.0,0.5621996]
[1747134563597,0.03577018,103520.0,103510.0,0.5621996]
[1747134563830,0.05508917,103520.0,103510.0,0.91315775]
[1747134564162,0.24828855,103520.0,103510.0,0.91315775]
[1747134564393,0.05508917,103520.0,103510.0,0.91315775]
[1747134564596,0.24828855,103520.0,103510.0,1.31315775]
[1747134564800,0.24928855,103520.0,103510.0,1.31415775]
[1747134567581,0.24249705,103520.0,103510.0,1.31415775]
[1747134567747,0.04929767,103520.0,103510.0,1.31415775]
[1747134569534,0.0396378,103520.0,103510.0,1.31415775]
[1747134574445,0.25879714,103520.0,103510.0,1.31415775]
[1747134574658,0.0719378,103520.0,103510.0,1.31415775]
[1747134575362,0.0719378,103520.0,103510.0,1.15249085]
[1747134575567,0.08159767,103520.0,103510.0,1.31415775]
[1747134576321,0.27479705,103520.0,103510.0,1.15249085]
[1747134576525,0.27479705,103520.0,103510.0,1.31415775]
[1747134577290,0.27479705,103520.0,103510.0,1.15249085]
[1747134577494,0.27479705,103520.0,103510.0,1.31415775]
[1747134578538,0.08159767,103520.0,103510.0,1.31415775]
[1747134579318,0.08159767,103520.0,103510.0,1.15249085]
[1747134579518,0.08159767,103520.0,103510.0,1.31415775]
[1747134579960,0.30295423,103520.0,103510.0,1.31415794]
[1747134580273,0.29329483,103520.0,103510.0,1.32381828]
[1747134580513,0.26513849,103520.0,103510.0,1.50561828]
[1747134582235,0.07193911,103520.0,103510.0,1.50561828]
[1747134582437,0.05261872,103520.0,103510.0,1.51527852]
[1747134582635,0.07193818,103520.0,103510.0,1.67694542]
[1747134582838,0.07193818,103520.0,103510.0,1.51527852]
[1747134582976,0.001,103520.0,103510.0,1.51527852]
[1747134583175,0.01065922,103520.0,103510.0,1.67694542]
[1747134583382,0.001,103520.0,103510.0,1.80555482]
[1747134584018,0.01065912,103520.0,103510.0,1.80555482]
[1747134584463,0.001,103520.0,103510.0,1.80555482]
[1747134592481,0.001,103520.0,103510.0,2.21785482]
[1747134595612,0.04219085,103550.0,103540.0,0.56213524]
[1747134595811,0.07670425,103550.0,103540.0,0.89163777]
[1747134596015,0.06992689,103550.0,103540.0,0.89163777]
[1747134596227,0.27272736,103550.0,103540.0,1.28198032]
[1747134596438,0.26307094,103550.0,103540.0,1.12997105]
[1747134596617,0.26307094,103550.0,103540.0,1.13962859]
[1747134596780,0.26307094,103550.0,103540.0,1.13967687]
[1747134596990,0.27372811,103550.0,103540.0,1.13967687]
[1747134597541,0.27372811,103550.0,103540.0,1.14067687]
[1747134597781,0.27372811,103550.0,103540.0,1.13101933]
[1747134598049,0.26407141,103550.0,103540.0,1.13101933]
[1747134598265,0.26407141,103550.0,103540.0,1.1544899]
[1747134600339,0.25441462,103550.0,103540.0,1.1544899]
[1747134600563,0.25441462,103550.0,103540.0,0.7544899]
[1747134601402,0.24475764,103550.0,103540.0,0.74483245]
[1747134601606,0.24475764,103550.0,103540.0,0.75449027]
[1747134602025,0.24475764,103550.0,103540.0,0.764148]
[1747134602244,0.24475764,103550.0,103540.0,0.93547253]
[1747134602865,0.24475764,103550.0,103540.0,0.9258149]
[1747134603158,0.24475764,103550.0,103540.0,0.75449027]
[1747134603531,0.24475764,103550.0,103540.0,0.40483227]
[1747134603969,0.24475764,103550.0,103540.0,0.38551654]
[1747134604172,0.23510057,103550.0,103540.0,0.39517454]
[1747134604636,0.26894336,103550.0,103540.0,0.19235448]
[1747134604842,0.26894336,103550.0,103540.0,0.00721701]
[1747134604843,0.2254434,103550.0,103540.0,0.00721701]
[1747134605045,0.4844197,103550.0,103540.0,0.00721701]
[1747134605528,0.6627528,103550.0,103540.0,0.00721701]
[1747134605728,0.6695261,103550.0,103540.0,0.00721701]
[1747134606958,0.3295261,103550.0,103540.0,0.00721701]
[1747134607185,0.4268355,103550.0,103540.0,0.00721701]
[1747134610127,0.5885024,103550.0,103540.0,0.00721701]
[1747134610546,0.60304325,103550.0,103540.0,0.00721701]
[1747134612206,0.44137635,103550.0,103540.0,0.00721701]
[1747134613033,0.51137635,103550.0,103540.0,0.00721701]
[1747134613357,0.44137635,103550.0,103540.0,0.00721701]
[1747134620176,0.3295261,103550.0,103540.0,0.00721701]
[1747134625860,0.3295261,103550.0,103540.0,0.16888391]
[1747134626744,0.3227528,103550.0,103540.0,0.16888391]
[1747134627005,0.32952539,103550.0,103540.0,0.00721701]
[1747134631719,0.32952539,103550.0,103540.0,0.01620489]
[1747134636700,0.4181424,103550.0,103540.0,0.01620489]
[1747134646386,0.5798093,103550.0,103540.0,0.01620489]
[1747134646952,0.4181424,103550.0,103540.0,0.01620489]
[1747134649122,0.5798093,103550.0,103540.0,0.01620489]
[1747134649755,0.4181424,103550.0,103540.0,0.01620489]
[1747134652874,0.3868424,103550.0,103540.0,0.01620489]
[1747134653080,0.33042539,103550.0,103540.0,0.01620489]
[1747134676983,0.20091599,103550.0,103540.0,0.01620489]
[1747134677187,0.20091599,103550.0,103540.0,0.17787179]
[1747134677618,0.1941434,103550.0,103540.0,0.01620489]
[1747134677798,0.20093386,103550.0,103540.0,0.01620489]
[1747134678012,0.20093385,103550.0,103540.0,0.01620489]
[1747134678788,0.21613385,103550.0,103540.0,0.01620489]
[1747134679078,0.25865839,103550.0,103540.0,0.01620489]
[1747134679728,0.27515839,103550.0,103540.0,0.01620489]
[1747134687370,0.37246779,103550.0,103540.0,0.01620489]
[1747134712188,0.53413469,103550.0,103540.0,0.01620489]
[1747134712387,0.37246779,103550.0,103540.0,0.01620489]
[1747134722384,0.32994193,103550.0,103540.0,0.01620489]
[1747134726073,0.2221564,103530.0,103520.0,1.11950483]
[1747134726274,0.2221564,103530.0,103520.0,1.1195534]
[1747134726549,0.2221564,103530.0,103520.0,1.13495031]
[1747134726890,0.21249812,103530.0,103520.0,1.1252909]
[1747134727094,0.21249812,103530.0,103520.0,1.186944]
[1747134727298,0.23332501,103530.0,103520.0,1.3486109]
[1747134727675,0.21249812,103530.0,103520.0,1.35827049]
[1747134728614,0.21249812,103530.0,103520.0,1.36127049]
[1747134729226,0.0193174,103530.0,103520.0,1.3709298]
[1747134729473,0.22215715,103530.0,103520.0,1.36127049]
[1747134729680,0.22215715,103530.0,103520.0,1.37092999]
[1747134730313,0.02897634,103530.0,103520.0,1.3805893]
[1747134730709,0.03863537,103530.0,103520.0,1.3805893]
[1747134731148,0.23181609,103530.0,103520.0,1.37092999]
[1747134731899,0.23181609,103530.0,103520.0,1.55252999]
[1747134733280,0.23181609,103530.0,103520.0,1.56218939]
[1747134738334,0.22215753,103530.0,103520.0,1.55252999]
[1747134740734,0.61483723,103530.0,103520.0,0.02344548]
[1747134741186,0.62162971,103530.0,103520.0,0.02344548]
[1747134741403,0.62162971,103530.0,103520.0,0.01956084]
[1747134741623,0.62162971,103530.0,103520.0,0.01456084]
[1747134741829,0.62162971,103530.0,103520.0,0.01556084]
[1747134742276,0.62162971,103530.0,103520.0,0.01456084]
[1747134742699,0.54478219,103530.0,103520.0,0.01456084]
[1747134743056,0.54478219,103530.0,103520.0,0.01156084]
[1747134743258,0.54678219,103530.0,103520.0,0.01156084]
[1747134748408,0.57502856,103530.0,103520.0,0.01156084]
[1747134752773,0.41336166,103530.0,103520.0,0.01156084]
[1747134753127,0.54678219,103530.0,103520.0,0.01156084]
[1747134753333,0.38511529,103530.0,103520.0,0.01156084]
[1747134763491,0.54678219,103530.0,103520.0,0.01156084]
[1747134764620,0.53678219,103530.0,103520.0,0.01156084]
[1747134765182,0.51678219,103530.0,103520.0,0.01156084]
[1747134765807,0.51178219,103530.0,103520.0,0.01156084]
[1747134767685,0.30694163,103530.0,103520.0,0.01156084]
[1747134768733,0.46860853,103530.0,103520.0,0.01156084]
[1747134769376,0.21256009,103500.0,103490.0,0.90442063]
[1747134769588,0.21256009,103500.0,103490.0,0.93363943]
[1747134770419,0.21256009,103500.0,103490.0,0.94063943]
[1747134770618,0.21256009,103500.0,103490.0,0.78199241]
[1747134771021,0.22916009,103500.0,103490.0,0.94365931]
[1747134771645,0.22916009,103500.0,103490.0,0.97524779]
[1747134771824,0.21256009,103500.0,103490.0,1.1534863]
[1747134772025,0.21256009,103500.0,103490.0,1.16314869]
[1747134772495,0.21256009,103500.0,103490.0,1.17504869]
[1747134773186,0.21256009,103500.0,103490.0,1.18468775]
[1747134776129,0.01644913,103510.0,103500.0,0.58378273]
[1747134776366,0.00678898,103510.0,103500.0,1.16609283]
[1747134776588,0.01654097,103530.0,103520.0,0.22217815]
[1747134776869,0.00688269,103530.0,103520.0,1.47901195]
[1747134777116,0.02619953,103530.0,103520.0,1.47901195]
[1747134777327,0.00688269,103530.0,103520.0,1.75792135]
[1747134777518,9.371e-05,103530.0,103520.0,1.43458755]
[1747134777784,0.0097519,103530.0,103520.0,1.75792135]
[1747134778222,9.371e-05,103530.0,103520.0,1.75892135]
[1747134778438,0.01941028,103530.0,103520.0,1.75792135]
[1747134779102,9.371e-05,103530.0,103520.0,1.75792135]
[1747134779287,9.371e-05,103530.0,103520.0,1.76092135]
[1747134779494,0.00975199,103530.0,103520.0,1.76092135]
[1747134779699,9.371e-05,103530.0,103520.0,1.76092135]
[1747134780273,9.371e-05,103530.0,103520.0,1.77151949]
[1747134780894,9.371e-05,103530.0,103520.0,1.93318639]
[1747134781712,9.371e-05,103530.0,103520.0,1.77151949]
[1747134782790,0.02585446,103570.0,103560.0,0.21243647]
[1747134783026,0.24399601,103580.0,103570.0,0.21241643]
[1747134783240,0.24448195,103580.0,103570.0,0.37408315]
[1747134783451,0.23482777,103580.0,103570.0,0.35477301]
[1747134783653,0.21241577,103570.0,103560.0,1.09340304]
[1747134783884,0.2250706,103570.0,103560.0,1.14417252]
[1747134784087,0.2250706,103570.0,103560.0,1.28652779]
[1747134784285,0.2403706,103570.0,103560.0,1.28652779]
[1747134784492,0.2403706,103570.0,103560.0,1.29618365]
[1747134784792,0.23071605,103570.0,103560.0,1.48246365]
[1747134784981,0.22106122,103570.0,103560.0,1.47280779]
[1747134785212,0.43520826,103570.0,103560.0,0.4]
[1747134785411,0.2332808,103560.0,103550.0,0.34]
[1747134785852,0.24295727,103550.0,103540.0,1.38901997]
[1747134786054,0.24295727,103550.0,103540.0,1.65460114]
[1747134786224,0.24295727,103550.0,103540.0,1.78212372]
[1747134786432,0.24295727,103550.0,103540.0,1.43246562]
[1747134786627,0.24295727,103550.0,103540.0,1.00096]
[1747134786863,0.28656547,103550.0,103540.0,1.52644]
[1747134787067,0.24295727,103550.0,103540.0,1.52644]
[1747134787277,0.24295727,103550.0,103540.0,1.98518369]
[1747134787481,0.01931368,103550.0,103540.0,2.01373867]
[1747134787682,0.02897075,103550.0,103540.0,2.01373867]
[1747134787882,0.03862717,103550.0,103540.0,2.00408132]
[1747134788080,0.03862717,103550.0,103540.0,2.01683877]
[1747134788262,0.04828434,103550.0,103540.0,2.01683877]
[1747134788641,0.04828434,103550.0,103540.0,2.01373877]
[1747134789258,0.0289701,103550.0,103540.0,2.01373877]
[1747134790122,0.03862717,103550.0,103540.0,2.00493877]
[1747134792821,0.05412717,103550.0,103540.0,2.00493877]
[1747134793046,0.26267057,103550.0,103540.0,2.00493886]
[1747134793256,0.06952717,103550.0,103540.0,2.01459631]
[1747134793467,0.05412717,103550.0,103540.0,2.01459631]
[1747134794761,0.06378434,103550.0,103540.0,2.01459631]
[1747134794970,0.27252774,103550.0,103540.0,2.00493886]
[1747134795266,0.26287132,103550.0,103540.0,1.98562369]
[1747134795413,0.26287132,103550.0,103540.0,2.00493914]
[1747134795909,0.26287132,103550.0,103540.0,2.01459668]
[1747134796117,0.24727132,103550.0,103540.0,2.01459668]
[1747134796546,0.26307132,103550.0,103540.0,2.01451668]
[1747134796954,0.25341462,103550.0,103540.0,1.99520151]
[1747134797165,0.24375764,103550.0,103540.0,1.72962016]
[1747134797379,0.24375764,103550.0,103540.0,1.74893607]
[1747134797553,0.23410057,103550.0,103540.0,1.72962016]
[1747134797782,0.23410057,103550.0,103540.0,1.31226016]
[1747134798174,0.2244434,103550.0,103540.0,0.9236]
[1747134799762,0.02555847,103530.0,103520.0,1.40186372]
[1747134799888,0.03521666,103530.0,103520.0,1.68273312]
[1747134800138,0.03521666,103530.0,103520.0,2.08273312]
[1747134800343,0.03521657,103530.0,103520.0,2.08273312]
[1747134800750,0.03521657,103530.0,103520.0,2.08673312]
[1747134800953,0.05453379,103530.0,103520.0,2.08673312]
[1747134801176,0.24681507,103530.0,103520.0,1.98942428]
[1747134801404,0.04397551,103530.0,103520.0,1.99908359]
[1747134801625,0.04397551,103530.0,103520.0,2.00208359]
[1747134801865,0.24259832,103530.0,103520.0,0.59056]
[1747134802081,0.24259832,103530.0,103520.0,0.19056]
[1747134802537,0.24259832,103530.0,103520.0,0.59056]
[1747134803416,0.24259832,103530.0,103520.0,0.78375938]
[1747134804090,0.05907578,103530.0,103520.0,1.06866373]
[1747134804310,0.26191544,103530.0,103520.0,1.05900442]
[1747134804538,0.25225706,103530.0,103520.0,1.05900442]
[1747134804741,0.21249812,103530.0,103520.0,1.39900442]
[1747134804961,0.22215715,103530.0,103520.0,1.38934483]
[1747134805216,0.23785715,103530.0,103520.0,1.38934483]
[1747134805433,0.04467643,103530.0,103520.0,1.41832351]
[1747134805663,0.23785706,103530.0,103520.0,1.41832286]
[1747134805872,0.24751609,103530.0,103520.0,1.40866355]
[1747134806131,0.02897634,103530.0,103520.0,1.41832286]
[1747134806734,0.22215706,103530.0,103520.0,1.41832286]
[1747134807343,0.00965856,103530.0,103520.0,1.41832286]
[1747134807557,0.05131564,103540.0,103530.0,0.5621567]
[1747134807825,0.26379315,103540.0,103530.0,0.79876394]
[1747134808024,0.2541357,103540.0,103530.0,0.79876412]
[1747134808584,0.2541357,103540.0,103530.0,1.19876412]
[1747134809288,0.2541357,103540.0,103530.0,1.21042287]